[Event "28th North American Open"]
[Site "Las Vegas"]
[Date "2018.12.28"]
[Round "5.1"]
[White "Zierk, Steven"]
[Black "Bai, Jinshi"]
[Result "1/2-1/2"]
[ECO "C24"]
[WhiteElo "2510"]
[BlackElo "2568"]
[PlyCount "37"]
[EventDate "2018.12.??"]
[EventType "swiss"]
[EventRounds "9"]
[EventCountry "USA"]
[TimeControl "6600+10"]
[WhiteClock "1:26:58"]
[BlackClock "1:27:07"]

1. e4 {[%emt 0:00:00]} e5 {[%emt 0:00:00]} 2. Bc4 {[%emt 0:00:00]} Nf6 {
[%emt 0:00:00]} 3. d3 {[%emt 0:00:00]} c6 {[%emt 0:00:00]} 4. Nf3 {[%emt 0:00:
00]} d5 {[%emt 0:00:00]} 5. Bb3 {[%emt 0:00:00]} Bb4+ {[%emt 0:00:00]} 6. Bd2 {
[%emt 0:00:00]} Bxd2+ {[%emt 0:00:00]} 7. Nbxd2 {[%emt 0:00:00]} O-O {[%emt 0:
00:00]} 8. O-O {[%emt 0:00:00]} a5 {[%emt 0:00:00]} 9. c3 {[%emt 0:00:00]} Bg4
{[%emt 0:03:22]} 10. h3 {[%emt 0:00:23]} Bxf3 {[%emt 0:02:09]} 11. Nxf3 {
[%emt 0:05:00]} dxe4 {[%emt 0:05:30]} 12. Nxe5 {[%emt 0:03:28]} exd3 {[%emt 0:
00:40]} 13. Qxd3 {[%emt 0:07:25]} Nbd7 {[%emt 0:09:58]} 14. Nxd7 {[%emt 0:04:
51]} Qxd7 {[%emt 0:02:08]} 15. Rad1 {[%emt 0:02:55]} Qxd3 {[%emt 0:00:39]} 16.
Rxd3 {[%emt 0:00:10]} Rfd8 {[%emt 0:00:10]} 17. Rfd1 {[%emt 0:00:47]} Rxd3 {
[%emt 0:00:42]} 18. Rxd3 {[%emt 0:00:10]} Re8 {[%emt 0:00:45]} 19. Kf1 {
[%emt 0:01:03]} 1/2-1/2

[Event "28th North American Open"]
[Site "Las Vegas"]
[Date "2018.12.28"]
[Round "5.2"]
[White "Hong, Andrew"]
[Black "Pakleza, Zbigniew"]
[Result "1/2-1/2"]
[ECO "B07"]
[WhiteElo "2390"]
[BlackElo "2506"]
[PlyCount "35"]
[EventDate "2018.12.??"]
[EventType "swiss"]
[EventRounds "9"]
[EventCountry "USA"]
[TimeControl "6600+10"]
[WhiteClock "1:22:36"]
[BlackClock "1:53:01"]

1. e4 {[%emt 0:00:00]} d6 {[%emt 0:00:00]} 2. d4 {[%emt 0:00:00]} Nf6 {[%emt 0:
00:00]} 3. Nc3 {[%emt 0:00:00]} Nbd7 {[%emt 0:00:00]} 4. Nf3 {[%emt 0:00:00]}
e5 {[%emt 0:00:00]} 5. Bc4 {[%emt 0:00:00]} Be7 {[%emt 0:00:00]} 6. O-O {
[%emt 0:00:00]} O-O {[%emt 0:00:00]} 7. Re1 {[%emt 0:00:00]} c6 {[%emt 0:00:00]
} 8. a4 {[%emt 0:00:00]} a5 {[%emt 0:00:00]} 9. Ba2 {[%emt 0:00:00]} h6 {
[%emt 0:00:00]} 10. h3 {[%emt 0:03:26]} Re8 {[%emt 0:00:00]} 11. Nh4 {[%emt 0:
11:02]} Nf8 {[%emt 0:00:00]} 12. dxe5 {[%emt 0:04:34]} dxe5 {[%emt 0:00:00]}
13. Nf5 {[%emt 0:00:39]} Qxd1 {[%emt 0:00:00]} 14. Nxe7+ {[%emt 0:03:00]} Rxe7
{[%emt 0:00:00]} 15. Rxd1 {[%emt 0:01:27]} Be6 {[%emt 0:00:00]} 16. Be3 {
[%emt 0:01:57]} Bxa2 {[%emt 0:00:00]} 17. Rxa2 {[%emt 0:00:13]} Ne6 {[%emt 0:
00:00]} 18. Raa1 {[%emt 0:04:06]} 1/2-1/2

[Event "28th North American Open"]
[Site "Las Vegas"]
[Date "2018.12.28"]
[Round "5.3"]
[White "Coleman, Teddy"]
[Black "Balakrishnan, Praveen"]
[Result "1-0"]
[ECO "E49"]
[WhiteElo "2361"]
[BlackElo "2418"]
[PlyCount "103"]
[EventDate "2018.12.??"]
[EventType "swiss"]
[EventRounds "9"]
[EventCountry "USA"]
[TimeControl "6600+10"]
[WhiteClock "0:35:12"]
[BlackClock "0:18:55"]

1. d4 {[%emt 0:00:00]} Nf6 {[%emt 0:03:42]} 2. c4 {[%emt 0:00:00]} e6 {[%emt 0:
00:10]} 3. Nc3 {[%emt 0:00:00]} Bb4 {[%emt 0:00:10]} 4. e3 {[%emt 0:00:00]} O-O
{[%emt 0:02:02]} 5. Bd3 {[%emt 0:00:00]} d5 {[%emt 0:02:24]} 6. a3 {[%emt 0:00:
00]} Bxc3+ {[%emt 0:02:39]} 7. bxc3 {[%emt 0:00:00]} c5 {[%emt 0:08:30]} 8.
cxd5 {[%emt 0:00:00]} exd5 {[%emt 0:03:11]} 9. Ne2 {[%emt 0:00:00]} b6 {
[%emt 0:02:27]} 10. O-O {[%emt 0:04:58]} Ba6 {[%emt 0:02:14]} 11. dxc5 {
[%emt 0:11:53]} bxc5 {[%emt 0:05:13]} 12. Bxa6 {[%emt 0:00:10]} Nxa6 {[%emt 0:
00:10]} 13. c4 {[%emt 0:02:24]} dxc4 {[%emt 0:32:23]} 14. Qa4 {[%emt 0:01:11]}
Nc7 {[%emt 0:00:59]} 15. Rd1 {[%emt 0:03:25]} Qe7 {[%emt 0:03:16]} 16. Qxc4 {
[%emt 0:02:46]} Rfd8 {[%emt 0:04:24]} 17. Bd2 {[%emt 0:02:14]} Qd6 {[%emt 0:07:
21]} 18. Qa4 {[%emt 0:04:18]} Qd7 {[%emt 0:02:12]} 19. Qc2 {[%emt 0:03:45]} Qd3
{[%emt 0:03:25]} 20. Qxd3 {[%emt 0:00:21]} Rxd3 {[%emt 0:00:10]} 21. Nf4 {
[%emt 0:00:36]} Rb3 {[%emt 0:03:19]} 22. Rdc1 {[%emt 0:05:08]} Na6 {[%emt 0:05:
50]} 23. f3 {[%emt 0:04:41]} g5 {[%emt 0:06:42]} 24. Nh3 {[%emt 0:05:20]} Rd8 {
[%emt 0:02:12]} 25. Bc3 {[%emt 0:07:06]} Nd5 {[%emt 0:00:57]} 26. Ba5 {[%emt 0:
00:10]} Rd6 {[%emt 0:04:09]} 27. Rd1 {[%emt 0:10:46]} Rxe3 {[%emt 0:00:11]} 28.
Nxg5 {[%emt 0:00:50]} f5 {[%emt 0:00:32]} 29. Be1 {[%emt 0:12:18]} Rd7 {
[%emt 0:00:48]} 30. Bf2 {[%emt 0:00:36]} Rc3 {[%emt 0:00:46]} 31. Ne6 {[%emt 0:
06:00]} Kf7 {[%emt 0:00:37]} 32. Nf4 {[%emt 0:00:23]} Nb6 {[%emt 0:00:26]} 33.
Re1 {[%emt 0:06:10]} Re7 {[%emt 0:00:25]} 34. Bh4 {[%emt 0:01:50]} Rd7 {
[%emt 0:00:35]} 35. Re5 {[%emt 0:00:22]} Kg8 {[%emt 0:01:02]} 36. Rxf5 {
[%emt 0:03:24]} Nc7 {[%emt 0:00:12]} 37. Re1 {[%emt 0:02:00]} Rc4 {[%emt 0:00:
28]} 38. Bf2 {[%emt 0:01:40]} Nbd5 {[%emt 0:00:10]} 39. Nd3 {[%emt 0:00:12]}
Re7 {[%emt 0:00:14]} 40. Rxe7 {[%emt 0:00:30]} Nxe7 {[%emt 0:00:10]} 41. Rxc5 {
[%emt 0:00:10]} Rxc5 {[%emt 0:00:00]} 42. Bxc5 {[%emt 0:00:00]} Nc8 {[%emt 0:
00:00]} 43. Ne5 {[%emt 0:00:00]} Ne6 {[%emt 0:00:00]} 44. Be3 {[%emt 0:00:00]}
Nd6 {[%emt 0:00:00]} 45. a4 {[%emt 0:00:00]} a6 {[%emt 0:00:00]} 46. g4 {
[%emt 0:00:00]} Kg7 {[%emt 0:00:00]} 47. Kf2 {[%emt 0:00:00]} Nb7 {[%emt 0:00:
00]} 48. Nd3 {[%emt 0:00:00]} Kf6 {[%emt 0:00:00]} 49. f4 {[%emt 0:00:00]} a5 {
[%emt 0:00:00]} 50. f5 {[%emt 0:00:00]} Nc7 {[%emt 0:00:00]} 51. Bd4+ {[%emt 0:
00:00]} Ke7 {[%emt 0:00:00]} 52. Kf3 {[%emt 0:00:00]} 1-0

[Event "28th North American Open"]
[Site "Las Vegas"]
[Date "2018.12.28"]
[Round "5.4"]
[White "Daggupati, Balaji"]
[Black "Gorovets, Andrey"]
[Result "1/2-1/2"]
[ECO "B12"]
[WhiteElo "2256"]
[BlackElo "2509"]
[PlyCount "78"]
[EventDate "2018.12.??"]
[EventType "swiss"]
[EventRounds "9"]
[EventCountry "USA"]
[TimeControl "6600+10"]
[WhiteClock "0:23:56"]
[BlackClock "0:03:28"]

1. e4 {[%emt 0:00:00]} c6 {[%emt 0:00:00]} 2. d4 {[%emt 0:00:00]} d5 {[%emt 0:
00:00]} 3. e5 {[%emt 0:00:00]} Bf5 {[%emt 0:00:00]} 4. Nd2 {[%emt 0:00:00]} e6
{[%emt 0:00:00]} 5. Nb3 {[%emt 0:00:00]} f6 {[%emt 0:05:43]} 6. Nf3 {[%emt 0:
00:00]} Nd7 {[%emt 0:01:45]} 7. Bd3 {[%emt 0:06:47]} Ne7 {[%emt 0:13:53]} 8.
exf6 {[%emt 0:14:43]} gxf6 {[%emt 0:01:16]} 9. Qe2 {[%emt 0:02:40]} Bxd3 {
[%emt 0:01:34]} 10. cxd3 {[%emt 0:01:32]} Kf7 {[%emt 0:00:26]} 11. Bd2 {
[%emt 0:04:23]} Ng6 {[%emt 0:02:13]} 12. h4 {[%emt 0:01:59]} h5 {[%emt 0:05:14]
} 13. O-O-O {[%emt 0:02:37]} Qc7 {[%emt 0:09:19]} 14. Kb1 {[%emt 0:02:10]} Nf4
{[%emt 0:03:21]} 15. Qf1 {[%emt 0:01:12]} a5 {[%emt 0:00:14]} 16. g3 {[%emt 0:
04:18]} Ng6 {[%emt 0:00:11]} 17. Qg2 {[%emt 0:05:13]} a4 {[%emt 0:00:22]} 18.
Nc1 {[%emt 0:00:21]} a3 {[%emt 0:00:10]} 19. b3 {[%emt 0:00:13]} Bh6 {[%emt 0:
02:32]} 20. Bxh6 {[%emt 0:01:50]} Rxh6 {[%emt 0:00:39]} 21. g4 {[%emt 0:03:40]}
hxg4 {[%emt 0:08:18]} 22. Qxg4 {[%emt 0:01:50]} Rg8 {[%emt 0:03:31]} 23. Rdg1 {
[%emt 0:04:18]} Rhh8 {[%emt 0:02:54]} 24. Qh3 {[%emt 0:02:04]} Qa5 {[%emt 0:05:
51]} 25. Kc2 {[%emt 0:04:01]} c5 {[%emt 0:10:16]} 26. h5 {[%emt 0:05:31]} Nf4 {
[%emt 0:02:57]} 27. Qh2 {[%emt 0:00:15]} Rxg1 {[%emt 0:15:30]} 28. Rxg1 {
[%emt 0:02:38]} Nxh5 {[%emt 0:00:36]} 29. Qd6 {[%emt 0:00:49]} Qb5 {[%emt 0:00:
10]} 30. Rh1 {[%emt 0:04:08]} c4 {[%emt 0:02:23]} 31. dxc4 {[%emt 0:04:09]}
dxc4 {[%emt 0:00:10]} 32. bxc4 {[%emt 0:00:12]} Qxc4+ {[%emt 0:01:38]} 33. Kd2
{[%emt 0:00:10]} Qb5 {[%emt 0:03:00]} 34. Nd3 {[%emt 0:00:21]} Nf4 {[%emt 0:06:
15]} 35. Nxf4 {[%emt 0:00:38]} Rxh1 {[%emt 0:00:11]} 36. Qxe6+ {[%emt 0:00:45]}
Kf8 {[%emt 0:00:10]} 37. Qd6+ {[%emt 0:06:47]} Kf7 {[%emt 0:00:10]} 38. Qe6+ {
[%emt 0:00:10]} Kf8 {[%emt 0:00:10]} 39. Qd6+ {[%emt 0:00:10]} Kf7 {[%emt 0:00:
10]} 1/2-1/2

[Event "28th North American Open"]
[Site "Las Vegas"]
[Date "2018.12.28"]
[Round "5"]
[White "Patel, Advait"]
[Black "Vivekananthan, Anish"]
[Result "1/2-1/2"]
[ECO "B98"]
[WhiteElo "2455"]
[BlackElo "2294"]
[PlyCount "50"]
[EventDate "2018.12.??"]
[EventType "swiss"]
[EventRounds "9"]
[EventCountry "USA"]
[TimeControl "6600+10"]
[WhiteClock "0:36:11"]
[BlackClock "1:00:23"]

1. e4 {[%emt 0:19:40]} c5 {[%emt 0:19:53]} 2. Nf3 {[%emt 0:00:00]} d6 {[%emt 0:
00:00]} 3. d4 {[%emt 0:00:00]} cxd4 {[%emt 0:00:00]} 4. Nxd4 {[%emt 0:00:00]}
Nf6 {[%emt 0:00:00]} 5. Nc3 {[%emt 0:00:00]} a6 {[%emt 0:00:00]} 6. Bg5 {
[%emt 0:00:00]} e6 {[%emt 0:00:00]} 7. f4 {[%emt 0:00:00]} Be7 {[%emt 0:00:00]}
8. Qf3 {[%emt 0:00:00]} h6 {[%emt 0:00:00]} 9. Bh4 {[%emt 0:00:00]} Qc7 {
[%emt 0:00:00]} 10. O-O-O {[%emt 0:00:00]} Nbd7 {[%emt 0:00:00]} 11. Be2 {
[%emt 0:00:00]} O-O {[%emt 0:00:00]} 12. Qg3 {[%emt 0:12:58]} Nc5 {[%emt 0:00:
00]} 13. Bf3 {[%emt 0:01:47]} e5 {[%emt 0:00:00]} 14. Bxf6 {[%emt 0:17:24]}
Bxf6 {[%emt 0:00:00]} 15. Nd5 {[%emt 0:00:04]} Qd8 {[%emt 0:00:00]} 16. Nxf6+ {
[%emt 0:00:45]} Qxf6 {[%emt 0:00:00]} 17. Ne2 {[%emt 0:00:00]} b6 {[%emt 0:20:
29]} 18. fxe5 {[%emt 0:16:37]} dxe5 {[%emt 0:00:08]} 19. Nc3 {[%emt 0:00:00]}
Bb7 {[%emt 0:06:09]} 20. Nd5 {[%emt 0:00:56]} Bxd5 {[%emt 0:00:00]} 21. Rxd5 {
[%emt 0:00:00]} Rfe8 {[%emt 0:00:35]} 22. Rhd1 {[%emt 0:00:00]} a5 {[%emt 0:00:
27]} 23. Kb1 {[%emt 0:04:04]} Rab8 {[%emt 0:00:49]} 24. c3 {[%emt 0:02:10]} a4
{[%emt 0:00:35]} 25. a3 {[%emt 0:01:34]} Rbd8 {[%emt 0:04:52]} 1/2-1/2

[Event "28th North American Open"]
[Site "Las Vegas"]
[Date "2018.12.28"]
[Round "5"]
[White "Mulyar, Michael"]
[Black "He, Anthony"]
[Result "1/2-1/2"]
[ECO "D76"]
[WhiteElo "2398"]
[BlackElo "2251"]
[PlyCount "58"]
[EventDate "2018.12.??"]
[EventType "swiss"]
[EventRounds "9"]
[EventCountry "USA"]
[TimeControl "6600+10"]
[WhiteClock "1:10:08"]
[BlackClock "0:04:16"]

1. d4 {[%emt 0:19:40]} Nf6 {[%emt 0:20:25]} 2. Nf3 {[%emt 0:00:00]} g6 {
[%emt 0:00:23]} 3. c4 {[%emt 0:00:00]} Bg7 {[%emt 0:00:04]} 4. g3 O-O {[%emt 0:
00:49]} 5. Bg2 {[%emt 0:00:00]} d5 {[%emt 0:00:00]} 6. cxd5 {[%emt 0:00:00]}
Nxd5 {[%emt 0:00:00]} 7. O-O {[%emt 0:00:00]} Nb6 {[%emt 0:00:00]} 8. Nc3 Nc6 {
[%emt 0:00:00]} 9. e3 {[%emt 0:00:00]} Re8 {[%emt 0:00:00]} 10. Nh4 {[%emt 0:
00:00]} e5 {[%emt 0:00:00]} 11. d5 {[%emt 0:00:00]} Nb4 {[%emt 0:00:00]} 12. a3
{[%emt 0:00:00]} Na6 {[%emt 0:00:00]} 13. Qc2 {[%emt 0:00:00]} Qe7 {[%emt 0:11:
07]} 14. e4 {[%emt 0:07:43]} c6 {[%emt 0:01:18]} 15. Be3 {[%emt 0:02:12]} Nc4 {
[%emt 0:08:08]} 16. Qe2 {[%emt 0:06:57]} Nxe3 {[%emt 0:01:18]} 17. Qxe3 {
[%emt 0:00:00]} Nc5 {[%emt 0:16:59]} 18. Rad1 {[%emt 0:00:22]} Nb3 {[%emt 0:07:
54]} 19. Nb5 {[%emt 0:03:29]} cxb5 {[%emt 0:14:16]} 20. Qxb3 {[%emt 0:00:00]}
Bd7 {[%emt 0:00:00]} 21. Rc1 {[%emt 0:00:00]} Rac8 {[%emt 0:00:50]} 22. Qe3 {
[%emt 0:00:00]} b6 {[%emt 0:00:15]} 23. Rxc8 {[%emt 0:03:35]} Rxc8 {[%emt 0:00:
00]} 24. Rc1 {[%emt 0:00:00]} Rxc1+ {[%emt 0:04:04]} 25. Qxc1 {[%emt 0:00:00]}
Qc5 {[%emt 0:00:00]} 26. Qd2 {[%emt 0:00:00]} Bf8 {[%emt 0:00:36]} 27. Nf3 {
[%emt 0:00:00]} f6 {[%emt 0:16:10]} 28. b4 {[%emt 0:00:00]} Qc7 {[%emt 0:00:31]
} 29. Ne1 {[%emt 0:00:44]} Bd6 {[%emt 0:05:37]} 1/2-1/2

[Event "28th North American Open"]
[Site "Las Vegas"]
[Date "2018.12.28"]
[Round "5"]
[White "Zhu, Jack"]
[Black "Kollar, Romain"]
[Result "1-0"]
[ECO "A45"]
[WhiteElo "2364"]
[BlackElo "2180"]
[PlyCount "123"]
[EventDate "2018.12.??"]
[EventType "swiss"]
[EventRounds "9"]
[EventCountry "USA"]
[TimeControl "6600+10"]
[WhiteClock "0:44:01"]
[BlackClock "0:02:02"]

1. d4 {[%emt 0:19:40]} Nf6 {[%emt 0:20:04]} 2. Bg5 {[%emt 0:00:00]} d5 {
[%emt 0:00:17]} 3. Bxf6 {[%emt 0:00:00]} exf6 {[%emt 0:00:00]} 4. e3 {[%emt 0:
00:00]} Bd6 {[%emt 0:01:22]} 5. Nf3 {[%emt 0:00:00]} O-O 6. Nbd2 {[%emt 0:00:
00]} c6 {[%emt 0:00:37]} 7. Bd3 {[%emt 0:00:00]} Be6 {[%emt 0:05:55]} 8. c3 {
[%emt 0:00:00]} Nd7 {[%emt 0:00:29]} 9. Qc2 {[%emt 0:00:02]} g6 {[%emt 0:00:29]
} 10. O-O {[%emt 0:04:31]} f5 {[%emt 0:01:12]} 11. g3 {[%emt 0:04:02]} Nf6 {
[%emt 0:10:45]} 12. Nh4 {[%emt 0:00:00]} Nh5 {[%emt 0:03:28]} 13. Ndf3 {
[%emt 0:02:25]} Re8 {[%emt 0:09:17]} 14. Ng2 {[%emt 0:00:04]} Rc8 {[%emt 0:09:
10]} 15. Rfe1 {[%emt 0:00:42]} Nf6 {[%emt 0:00:46]} 16. Qb3 {[%emt 0:09:39]} b6
{[%emt 0:03:21]} 17. a4 {[%emt 0:01:39]} Ne4 {[%emt 0:10:43]} 18. Qd1 {[%emt 0:
00:58]} g5 {[%emt 0:06:28]} 19. Rf1 {[%emt 0:02:57]} Qf6 {[%emt 0:05:16]} 20.
Nd2 {[%emt 0:04:24]} Qh6 {[%emt 0:00:36]} 21. Re1 {[%emt 0:01:50]} Bd7 {
[%emt 0:05:56]} 22. Re2 {[%emt 0:04:40]} Re7 {[%emt 0:09:36]} 23. f3 {[%emt 0:
00:40]} Nf6 {[%emt 0:00:00]} 24. Qc2 {[%emt 0:02:05]} f4 {[%emt 0:00:00]} 25.
gxf4 {[%emt 0:00:07]} gxf4 {[%emt 0:01:37]} 26. e4 {[%emt 0:00:00]} dxe4 {
[%emt 0:03:03]} 27. Nxe4 {[%emt 0:00:00]} Nxe4 {[%emt 0:00:55]} 28. Rxe4 {
[%emt 0:00:00]} Rxe4 {[%emt 0:00:47]} 29. Bxe4 {[%emt 0:00:00]} Qh3 {[%emt 0:
00:19]} 30. Rf1 {[%emt 0:05:34]} Kh8 {[%emt 0:01:27]} 31. Qd2 {[%emt 0:00:37]}
Rg8 {[%emt 0:00:37]} 32. Rf2 {[%emt 0:00:16]} Qh4 {[%emt 0:00:00]} 33. Kh1 {
[%emt 0:00:05]} Qg5 {[%emt 0:00:00]} 34. Rf1 {[%emt 0:02:30]} Bh3 {[%emt 0:00:
00]} 35. Rg1 {[%emt 0:00:00]} c5 {[%emt 0:00:00]} 36. Qf2 {[%emt 0:00:00]}
Bxg2+ {[%emt 0:00:21]} 37. Qxg2 {[%emt 0:00:00]} Qxg2+ {[%emt 0:00:00]} 38.
Rxg2 {[%emt 0:00:00]} Rxg2 {[%emt 0:00:20]} 39. Kxg2 {[%emt 0:00:00]} cxd4 {
[%emt 0:00:00]} 40. cxd4 {[%emt 0:00:00]} Kg7 {[%emt 0:00:00]} 41. Kf2 {
[%emt 0:00:00]} h6 {[%emt 0:00:13]} 42. Ke2 {[%emt 0:01:41]} Kf6 {[%emt 0:00:
00]} 43. Kd3 {[%emt 0:00:00]} a5 {[%emt 0:00:00]} 44. Kc4 {[%emt 0:00:00]} Bb4
{[%emt 0:00:00]} 45. Kb5 {[%emt 0:00:00]} Ke6 {[%emt 0:00:00]} 46. Kc6 {
[%emt 0:00:00]} Ke7 {[%emt 0:00:00]} 47. Bd5 {[%emt 0:00:00]} f6 {[%emt 0:00:
07]} 48. Bc4 {[%emt 0:00:00]} f5 {[%emt 0:00:14]} 49. Bg8 {[%emt 0:00:09]} Bd2
{[%emt 0:00:24]} 50. Kxb6 {[%emt 0:00:30]} Kd6 {[%emt 0:00:00]} 51. Kb5 {
[%emt 0:00:00]} h5 {[%emt 0:01:44]} 52. h4 {[%emt 0:04:30]} Be1 {[%emt 0:00:13]
} 53. Bc4 {[%emt 0:00:00]} Bxh4 {[%emt 0:00:21]} 54. Kxa5 {[%emt 0:00:00]} Bf6
{[%emt 0:00:00]} 55. b4 {[%emt 0:00:00]} Bxd4 {[%emt 0:00:00]} 56. Ka6 {
[%emt 0:00:00]} h4 {[%emt 0:00:00]} 57. Bf1 {[%emt 0:00:00]} Kc6 {[%emt 0:00:
00]} 58. a5 {[%emt 0:00:34]} Kc7 {[%emt 0:00:00]} 59. b5 {[%emt 0:00:00]} Kb8 {
[%emt 0:00:00]} 60. b6 {[%emt 0:00:00]} h3 {[%emt 0:00:03]} 61. Bxh3 {[%emt 0:
00:00]} Be3 {[%emt 0:00:00]} 62. Bxf5 {[%emt 0:00:00]} 1-0

[Event "28th North American Open"]
[Site "Las Vegas"]
[Date "2018.12.28"]
[Round "5"]
[White "Yanayt, Eugene"]
[Black "Li, Ruifeng"]
[Result "1/2-1/2"]
[ECO "A40"]
[WhiteElo "2122"]
[BlackElo "2559"]
[PlyCount "96"]
[EventDate "2018.12.??"]
[EventType "swiss"]
[EventRounds "9"]
[EventCountry "USA"]
[TimeControl "6600+10"]
[WhiteClock "0:05:05"]
[BlackClock "0:03:10"]

1. d4 {[%emt 0:19:40]} b6 {[%emt 0:20:25]} 2. e4 {[%emt 0:02:50]} Bb7 {[%emt 0:
00:00]} 3. Nc3 {[%emt 0:00:30]} e6 4. a3 {[%emt 0:03:52]} d6 5. Nf3 {[%emt 0:
01:56]} Nd7 {[%emt 0:00:00]} 6. Be2 {[%emt 0:01:56]} g6 {[%emt 0:01:21]} 7. O-O
{[%emt 0:08:01]} Bg7 {[%emt 0:00:00]} 8. Re1 {[%emt 0:05:56]} Ne7 {[%emt 0:00:
00]} 9. Bf1 {[%emt 0:07:35]} O-O {[%emt 0:00:00]} 10. Bf4 {[%emt 0:04:53]} h6 {
[%emt 0:04:29]} 11. h3 {[%emt 0:01:21]} Nf6 {[%emt 0:04:15]} 12. Qd2 {[%emt 0:
14:33]} g5 {[%emt 0:00:23]} 13. Bh2 {[%emt 0:01:28]} Ng6 {[%emt 0:03:49]} 14.
Rad1 {[%emt 0:01:12]} g4 {[%emt 0:06:05]} 15. hxg4 {[%emt 0:00:00]} Nxg4 {
[%emt 0:00:00]} 16. Bg3 {[%emt 0:01:41]} h5 {[%emt 0:02:08]} 17. Nh2 {[%emt 0:
07:34]} Bh6 {[%emt 0:01:03]} 18. Qe2 {[%emt 0:04:51]} Qg5 {[%emt 0:01:00]} 19.
Nf3 {[%emt 0:09:13]} Qe7 {[%emt 0:01:03]} 20. Nh2 {[%emt 0:02:01]} Nxh2 {
[%emt 0:01:20]} 21. Bxh2 {[%emt 0:00:00]} Kg7 {[%emt 0:00:00]} 22. e5 {[%emt 0:
07:02]} d5 {[%emt 0:02:48]} 23. Qf3 {[%emt 0:00:42]} Rh8 {[%emt 0:03:26]} 24.
Ne2 {[%emt 0:02:40]} Rag8 {[%emt 0:04:05]} 25. Ng3 {[%emt 0:00:00]} Kf8 {
[%emt 0:03:52]} 26. Bd3 {[%emt 0:00:00]} Nf4 {[%emt 0:06:05]} 27. Nf5 {[%emt 0:
00:00]} Nxg2 {[%emt 0:00:02]} 28. Nxe7 {[%emt 0:00:00]} Nxe1+ {[%emt 0:00:00]}
29. Nxg8 {[%emt 0:00:00]} Nxf3+ {[%emt 0:00:00]} 30. Kg2 {[%emt 0:00:00]} Rxg8+
{[%emt 0:02:59]} 31. Kxf3 {[%emt 0:00:00]} c5 {[%emt 0:00:00]} 32. Bg3 {
[%emt 0:01:17]} Rg4 {[%emt 0:02:22]} 33. Rh1 {[%emt 0:00:31]} c4 {[%emt 0:00:
00]} 34. Be2 {[%emt 0:01:52]} Rxd4 {[%emt 0:00:00]} 35. Rxh5 {[%emt 0:00:10]}
Kg7 {[%emt 0:00:38]} 36. Kg2 {[%emt 0:00:00]} Rd2 {[%emt 0:00:02]} 37. Bf3 {
[%emt 0:00:00]} Rxc2 {[%emt 0:00:00]} 38. Bh4 {[%emt 0:00:00]} Rxb2 {[%emt 0:
08:53]} 39. Bf6+ {[%emt 0:00:00]} Kg6 {[%emt 0:00:00]} 40. Rh4 {[%emt 0:00:00]}
Rb3 {[%emt 0:08:59]} 41. Bh5+ {[%emt 0:00:00]} Kh7 {[%emt 0:00:00]} 42. Bxf7 {
[%emt 0:00:00]} d4+ {[%emt 0:00:00]} 43. Kh2 {[%emt 0:00:00]} Rb1 {[%emt 0:02:
48]} 44. Rxd4 {[%emt 0:00:00]} Bd5 {[%emt 0:14:41]} 45. f3 {[%emt 0:00:00]}
Rb2+ {[%emt 0:06:19]} 46. Kg3 {[%emt 0:00:29]} Rb1 {[%emt 0:00:11]} 47. Kh2 {
[%emt 0:00:00]} Rb2+ {[%emt 0:00:00]} 48. Kg3 {[%emt 0:00:00]} Rb1 {[%emt 0:00:
00]} 1/2-1/2

[Event "28th North American Open"]
[Site "Las Vegas"]
[Date "2018.12.28"]
[Round "5"]
[White "Peng, Shunkai"]
[Black "Karthik Venkataraman"]
[Result "1/2-1/2"]
[ECO "D02"]
[WhiteElo "2285"]
[BlackElo "2527"]
[PlyCount "89"]
[EventDate "2018.12.??"]
[EventType "swiss"]
[EventRounds "9"]
[EventCountry "USA"]
[TimeControl "6600+10"]
[WhiteClock "0:04:21"]
[BlackClock "0:56:29"]

1. d4 {[%emt 0:19:40]} Nf6 {[%emt 0:19:55]} 2. Nf3 {[%emt 0:00:00]} d5 {
[%emt 0:00:07]} 3. Bf4 {[%emt 0:00:00]} c5 {[%emt 0:00:00]} 4. c3 {[%emt 0:00:
11]} Nc6 {[%emt 0:00:08]} 5. e3 {[%emt 0:00:02]} Qb6 {[%emt 0:00:00]} 6. Qb3 {
[%emt 0:02:10]} c4 {[%emt 0:00:00]} 7. Qc2 {[%emt 0:00:10]} Bf5 {[%emt 0:00:00]
} 8. Qc1 {[%emt 0:00:00]} e6 {[%emt 0:00:00]} 9. h3 Be7 {[%emt 0:00:00]} 10.
Nbd2 {[%emt 0:00:39]} h6 {[%emt 0:00:00]} 11. Be2 {[%emt 0:01:34]} O-O {
[%emt 0:00:00]} 12. O-O {[%emt 0:12:42]} Rfc8 {[%emt 0:00:00]} 13. Ne5 {
[%emt 0:00:06]} Nxe5 {[%emt 0:01:50]} 14. Bxe5 {[%emt 0:01:15]} Qc6 {[%emt 0:
01:37]} 15. a4 {[%emt 0:09:58]} Nd7 {[%emt 0:03:22]} 16. Bg3 {[%emt 0:04:34]}
b6 {[%emt 0:03:03]} 17. Re1 {[%emt 0:08:35]} Bh7 {[%emt 0:03:18]} 18. e4 {
[%emt 0:05:57]} Bxe4 {[%emt 0:00:13]} 19. Bxc4 {[%emt 0:00:00]} dxc4 {[%emt 0:
00:00]} 20. Nxe4 {[%emt 0:00:00]} a6 {[%emt 0:00:00]} 21. Qd1 {[%emt 0:09:30]}
Qd5 {[%emt 0:00:00]} 22. Nd2 {[%emt 0:19:51]} b5 {[%emt 0:00:00]} 23. Nf1 {
[%emt 0:00:23]} Bg5 {[%emt 0:01:45]} 24. h4 {[%emt 0:03:25]} Bf6 {[%emt 0:00:
04]} 25. Ne3 {[%emt 0:02:00]} Qc6 {[%emt 0:00:00]} 26. d5 {[%emt 0:02:22]} exd5
{[%emt 0:03:04]} 27. Qxd5 {[%emt 0:00:00]} b4 {[%emt 0:01:54]} 28. Qxc6 {
[%emt 0:06:41]} Rxc6 {[%emt 0:00:00]} 29. cxb4 {[%emt 0:02:35]} Bxb2 {[%emt 0:
00:00]} 30. b5 {[%emt 0:00:00]} axb5 {[%emt 0:04:07]} 31. axb5 {[%emt 0:00:00]}
Rxa1 {[%emt 0:00:00]} 32. Rxa1 {[%emt 0:00:00]} Rc8 {[%emt 0:00:00]} 33. Ra7 {
[%emt 0:00:00]} Nb6 {[%emt 0:00:33]} 34. Rc7 {[%emt 0:00:18]} Re8 {[%emt 0:17:
23]} 35. Nxc4 {[%emt 0:00:00]} Re1+ {[%emt 0:00:00]} 36. Kh2 {[%emt 0:00:00]}
Bd4 {[%emt 0:00:00]} 37. Nxb6 {[%emt 0:00:00]} Bxb6 {[%emt 0:00:00]} 38. Rc8+ {
[%emt 0:00:00]} Kh7 {[%emt 0:00:00]} 39. Rc6 {[%emt 0:00:00]} Bd4 {[%emt 0:00:
00]} 40. Rd6 {[%emt 0:00:47]} Bc5 {[%emt 0:00:00]} 41. Rd7 {[%emt 0:00:04]} Kg8
{[%emt 0:00:00]} 42. Rc7 {[%emt 0:00:00]} Bd4 {[%emt 0:00:00]} 43. Rc8+ {
[%emt 0:00:00]} Kh7 {[%emt 0:00:00]} 44. Rf8 {[%emt 0:00:00]} Rb1 {[%emt 0:00:
00]} 45. Rxf7 {[%emt 0:00:00]} 1/2-1/2